fUST/lending_fUST_20240204
["ID","MTS","AMOUNT","RATE_DAILY","PERIOD"]
[313259424,1707047445104,-157.04477798,0.00025899,2]
[313259425,1707047445113,-151.0,0.00025899,2]
[313259426,1707047445122,-295.180171,0.00025899,2]
[313259427,1707047445132,-500.0,0.00025999,2]
[313259428,1707047445141,-500.0,0.00025999,2]
[313259429,1707047445150,-500.0,0.00025999,2]
[313259430,1707047445159,-500.0,0.00025999,2]
[313259431,1707047445170,-150531.76238036,0.00026,2]
[313259432,1707047445179,-4985.7,0.00026,2]
[313259433,1707047445188,-304.26125,0.00026,12]
[313259434,1707047445197,-151.0,0.00026,2]
[313259435,1707047445206,-151.0,0.00026031,2]
[313259436,1707047445215,-620.00078518,0.00026073,2]
[313259437,1707047445224,-500.0,0.00026084,2]
[313259438,1707047445233,-740.65,0.00026084,2]
[313259439,1707047445242,-500.0,0.00026084,2]
[313259440,1707047445251,-637.46219497,0.00026084,2]
[313259441,1707047445260,-4790.39,0.00026084,2]
[313259442,1707047445269,-2095.75,0.00026084,2]
[313259443,1707047445278,-634.74,0.00026086,2]
[313259444,1707047445287,-500.0,0.00026086,2]
[313259445,1707047445296,-500.0,0.00026086,2]
[313259446,1707047445305,-1963.79,0.00026086,2]
[313259447,1707047445314,-500.0,0.00026086,2]
[313259448,1707047445322,-1576.79,0.00026086,2]
[313259449,1707047445331,-1665.37,0.00026086,2]
[313259450,1707047445341,-500.0,0.00026086,2]
[313259451,1707047445350,-500.0,0.00026086,2]
[313259452,1707047445358,-500.0,0.00026087,2]
[313259453,1707047445367,-1292.98,0.00026087,2]
[313259454,1707047445376,-1127.1,0.00026087,2]
[313259455,1707047445385,-500.0,0.00026087,2]
[313259456,1707047445394,-517.97,0.00026087,2]
[313259457,1707047445403,-500.0,0.00026087,2]
[313259458,1707047445411,-501.30078,0.000262,2]
[313259459,1707047445420,-500.0,0.00026358,2]
[313259460,1707047445429,-740.65,0.00026358,2]
[313259461,1707047445438,-500.0,0.00026358,2]
[313259462,1707047445446,-4790.39,0.00026358,2]
[313259463,1707047445456,-2095.75,0.00026358,2]
[313259464,1707047445465,-634.74,0.0002636,2]
[313259465,1707047445474,-500.0,0.0002636,2]
[313259466,1707047445482,-500.0,0.0002636,2]
[313259467,1707047445491,-1963.79,0.0002636,2]
[313259468,1707047445500,-500.0,0.0002636,2]
[313259469,1707047445510,-1576.79,0.0002636,2]
[313259470,1707047445519,-1665.37,0.0002636,2]
[313259471,1707047445527,-500.0,0.0002636,2]
[313259472,1707047445537,-500.0,0.0002636,2]
[313259473,1707047445546,-503.14715377,0.00026361,2]
[313259475,1707047445555,-1292.98,0.00026361,2]
[313259477,1707047445564,-1127.1,0.00026361,2]
[313259479,1707047445573,-500.0,0.00026361,2]
[313259480,1707047445585,-517.97,0.00026361,2]
[313259482,1707047445595,-500.0,0.00026361,2]
[313259484,1707047445604,-500.0,0.00026367,2]
[313259486,1707047445613,-550.70187389,0.00026632,2]
[313259488,1707047445623,-740.65,0.00026632,2]
[313259490,1707047445632,-500.0,0.00026632,2]
[313259491,1707047445641,-4790.39,0.00026632,2]
[313259492,1707047445650,-2095.75,0.00026632,2]
[313259493,1707047445659,-500.0,0.00026633,2]
[313259494,1707047445668,-634.74,0.00026634,2]
[313259495,1707047445676,-500.0,0.00026634,2]
[313259496,1707047445686,-544.59580033,0.00026634,2]
[313259497,1707047445695,-1963.79,0.00026634,2]
[313259498,1707047445704,-1576.79,0.00026634,2]
[313259499,1707047445713,-1665.37,0.00026634,2]
[313259500,1707047445723,-500.0,0.00026634,2]
[313259501,1707047445732,-500.0,0.00026634,2]
[313259502,1707047445742,-1292.98,0.00026635,2]
[313259503,1707047445751,-1127.1,0.00026635,2]
[313259504,1707047445760,-500.0,0.00026635,2]
[313259505,1707047445769,-517.97,0.00026635,2]
[313259506,1707047445778,-500.0,0.00026635,2]
[313259507,1707047445788,-740.65,0.00026906,2]
[313259508,1707047445796,-500.0,0.00026906,2]
[313259509,1707047445806,-4790.39,0.00026906,2]
[313259510,1707047445815,-2095.75,0.00026906,2]
[313259511,1707047445826,-634.74,0.00026908,2]
[313259512,1707047445835,-500.0,0.00026908,2]
[313259513,1707047445845,-1963.79,0.00026908,2]
[313259514,1707047445854,-1576.79,0.00026908,2]
[313259515,1707047445863,-1665.37,0.00026908,2]
[313259516,1707047445872,-500.0,0.00026908,2]
[313259517,1707047445881,-500.0,0.00026908,2]
[313259518,1707047445890,-1292.98,0.00026909,2]
[313259519,1707047445899,-1127.1,0.00026909,2]
[313259520,1707047445908,-500.0,0.00026909,2]
[313259521,1707047445918,-517.97,0.00026909,2]
[313259522,1707047445927,-500.0,0.00026909,2]
[313259523,1707047445935,-500.0,0.00026999,2]
[313259524,1707047445944,-500.0,0.00027,2]
[313259525,1707047445953,-7567.09702074,0.00027,2]
[313259526,1707047445962,-151.0,0.00027065,2]
[313259527,1707047445971,-19991.08397457,0.000271,2]
[313259528,1707047445980,-740.65,0.0002718,2]
[313259529,1707047445990,-500.0,0.0002718,2]
[313259531,1707047445999,-4790.39,0.0002718,2]
[313259532,1707047446008,-2095.75,0.0002718,2]
[313259533,1707047446016,-634.74,0.00027182,2]
[313259534,1707047446025,-500.0,0.00027182,2]
[313259535,1707047446035,-1963.79,0.00027182,2]
[313259537,1707047446044,-500.0,0.00027182,2]
[313259538,1707047446053,-1576.79,0.00027182,2]
[313259539,1707047446063,-1665.37,0.00027182,2]
[313259540,1707047446072,-500.0,0.00027182,2]
[313259541,1707047446080,-500.0,0.00027182,2]
[313259542,1707047446091,-1292.98,0.00027183,2]
[313259544,1707047446101,-1127.1,0.00027183,2]
[313259546,1707047446110,-500.0,0.00027183,2]
[313259548,1707047446119,-517.97,0.00027183,2]
[313259549,1707047446128,-500.0,0.00027183,2]
[313259550,1707047446137,-1791.801044,0.00027396,2]
[313259551,1707047446147,-500.0,0.00027396,2]
[313259553,1707047446156,-429.47950996,0.00027397,2]
[313259563,1707047446242,-500.0,0.00027397,15]
[313259564,1707047446251,-500.0,0.00027397,15]
[313259566,1707047446260,-500.0,0.00027397,15]
[313259568,1707047446269,-500.0,0.00027397,15]
[313259570,1707047446278,-500.0,0.00027397,15]
[313259572,1707047446287,-500.0,0.00027397,15]
[313259574,1707047446296,-500.0,0.00027397,15]
[313259576,1707047446306,-500.0,0.00027397,15]
[313259578,1707047446315,-500.0,0.00027397,15]
[313259580,1707047446325,-500.0,0.00027397,7]
[313259582,1707047446334,-500.0,0.00027397,7]
[313259584,1707047446344,-500.0,0.00027397,7]
[313259586,1707047446353,-500.0,0.00027397,7]
[313259588,1707047446362,-500.0,0.00027397,7]
[313259590,1707047446371,-500.0,0.00027397,7]
[313259592,1707047446380,-500.0,0.00027397,7]
[313259594,1707047446390,-500.0,0.00027397,7]
[313259596,1707047446399,-500.0,0.00027397,7]
[313259598,1707047446408,-155.0,0.00027397,2]
[313259600,1707047446416,-500.0,0.00027397,2]
[313259602,1707047446426,-1000.0,0.00027397,2]
[313259604,1707047446435,-1000.0,0.00027397,2]
[313259606,1707047446444,-1000.0,0.00027397,2]
[313259607,1707047446453,-1000.0,0.00027397,2]
[313259609,1707047446463,-1000.0,0.00027397,2]
[313259610,1707047446473,-1000.0,0.00027397,2]
[313259612,1707047446482,-1000.0,0.00027397,2]
[313259613,1707047446492,-1000.0,0.00027397,2]
[313259614,1707047446500,-1000.0,0.00027397,2]
[313259615,1707047446509,-500.0,0.00027397,2]
[313259616,1707047446519,-500.0,0.00027397,2]
[313259617,1707047446528,-500.0,0.00027397,2]
[313259618,1707047446538,-500.0,0.00027397,2]
[313259619,1707047446548,-500.0,0.00027397,2]
[313259620,1707047446557,-500.0,0.00027397,2]
[313259621,1707047446566,-500.0,0.00027397,2]
[313259622,1707047446575,-500.0,0.00027397,2]
[313259623,1707047446584,-500.0,0.00027397,2]
[313259624,1707047446594,-500.0,0.00027397,2]
[313259625,1707047446603,-500.0,0.00027451,2]
[313259626,1707047446613,-500.0,0.00027451,2]
[313259627,1707047446621,-422.26793438,0.00027451,2]
[313259628,1707047446631,-500.0,0.00027451,2]
[313259629,1707047446640,-440.06501795,0.00027451,2]
[313259630,1707047446649,-329.70696773,0.00027451,2]
[313259631,1707047446659,-313.75698239,0.00027451,2]
[313259632,1707047446668,-521.6620783,0.00027451,2]
[313259633,1707047446677,-205.18428678,0.00027451,2]
[313259634,1707047446687,-500.0,0.00027451,2]
[313259635,1707047446696,-500.0,0.00027451,2]
[313259636,1707047446706,-500.0,0.00027451,2]
[313259637,1707047446715,-500.0,0.00027451,2]
[313259638,1707047446724,-500.0,0.00027451,2]
[313259639,1707047446733,-210.64690874,0.00027451,2]
[313259640,1707047446743,-740.65,0.00027454,2]
[313259641,1707047446752,-500.0,0.00027454,2]
[313259642,1707047446761,-4790.39,0.00027454,2]
[313259643,1707047446770,-2095.75,0.00027454,2]
[313259644,1707047446780,-634.74,0.00027456,2]
[313259645,1707047446789,-500.0,0.00027456,15]
[313259646,1707047446801,-500.0,0.00027456,2]
[313259647,1707047446810,-500.0,0.00027456,7]
[313259648,1707047446820,-1963.79,0.00027456,2]
[313259649,1707047446829,-1576.79,0.00027456,2]
[313259650,1707047446838,-1665.37,0.00027456,2]
[313259651,1707047446848,-500.0,0.00027456,2]
[313259652,1707047446859,-1000.0,0.00027456,2]
[313259653,1707047446869,-486.83446429,0.00027456,2]
[313259654,1707047446879,-1292.98,0.00027457,2]
[313259655,1707047446889,-1127.1,0.00027457,2]
[313259656,1707047446898,-500.0,0.00027457,2]
[313259657,1707047446907,-517.97,0.00027457,2]
[313259658,1707047446917,-500.0,0.00027457,2]
[313259659,1707047446926,-500.0,0.00027457,2]
[313259660,1707047446935,-365.1046902,0.00027499,2]
[313259661,1707047446945,-24272.244735,0.000275,2]
[313259662,1707047446955,-2000.0,0.000275,2]
[313259663,1707047446965,-2000.0,0.0002751,2]
[313259664,1707047446975,-2000.0,0.0002752,2]
[313259665,1707047446985,-2000.0,0.0002753,2]
[313259666,1707047446996,-500.0,0.00027534,2]
[313259667,1707047447006,-2000.0,0.0002754,2]
[313259668,1707047447016,-2000.0,0.0002755,2]
[313259669,1707047447026,-2000.0,0.0002756,2]
[313259670,1707047447035,-2000.0,0.0002757,2]
[313259671,1707047447045,-2000.0,0.0002758,2]
[313259672,1707047447054,-2000.0,0.0002759,2]
[313259673,1707047447063,-2000.0,0.000276,2]
[313259674,1707047447072,-2000.0,0.0002761,2]
[313259675,1707047447082,-2000.0,0.0002762,2]
[313259676,1707047447092,-2000.0,0.0002763,2]
[313259677,1707047447102,-30534.88384016,0.00027638,2]
[313259678,1707047447111,-2000.0,0.0002764,2]
[313259679,1707047447122,-2000.0,0.0002765,2]
[313259680,1707047447133,-2000.0,0.0002766,2]
[313259681,1707047447142,-3567.385948,0.0002767,2]
[313259682,1707047447151,-500.0,0.00027671,2]
[313259683,1707047447160,-740.65,0.00027728,2]
[313259684,1707047447173,-500.0,0.00027728,2]
[313259685,1707047447183,-4790.39,0.00027728,2]
[313259686,1707047447193,-2095.75,0.00027728,2]
[313259687,1707047447202,-634.74,0.0002773,2]
[313259688,1707047447213,-500.0,0.0002773,15]
[313259689,1707047447223,-500.0,0.0002773,2]
[313259690,1707047447233,-446.57730993,0.0002773,7]
[313259691,1707047447243,-1963.79,0.0002773,2]
[313259692,1707047447253,-1576.79,0.0002773,2]
[313259693,1707047447263,-1665.37,0.0002773,2]
[313259694,1707047447271,-500.0,0.0002773,2]
[313259695,1707047447282,-1000.0,0.0002773,2]
[313259696,1707047447293,-1292.98,0.00027731,2]
[313259697,1707047447302,-1127.1,0.00027731,2]
[313259698,1707047447311,-500.0,0.00027731,2]
[313259699,1707047447320,-517.97,0.00027731,2]
[313259700,1707047447329,-500.0,0.00027731,2]
[313259701,1707047447338,-352.17532912,0.00027731,2]
[313259702,1707047447347,-500.0,0.00027808,2]
[313259703,1707047447356,-6756.17605349,0.00027855,2]
[313259704,1707047447365,-732.382939,0.0002788,2]
[313259705,1707047447375,-1119.622177,0.0002788,2]
[313259706,1707047447385,-2467.97915248,0.000279,2]
[313259707,1707047447396,-201.23998983,0.000279,2]
[313259708,1707047447405,-201.23998982,0.000279,2]
[313259709,1707047447414,-2915.86943201,0.00027944,2]
[313259710,1707047447424,-500.0,0.00027945,2]
[313259711,1707047447433,-280.0,0.00027967,15]
[313259712,1707047447442,-64929.49941037,0.00028,2]
[313259713,1707047447451,-1112.64156413,0.00028,2]
[313259714,1707047447459,-401.55800038,0.00028,2]
[313259715,1707047447469,-1122.58886642,0.00028,20]
[313259716,1707047447478,-262.55347995,0.00028,2]
[313259717,1707047447487,-500.0,0.00028,2]
[313259718,1707047447496,-3879.70018214,0.00028,2]
[313259719,1707047447506,-70363.0,0.00028,3]
[313259720,1707047447515,-740.65,0.00028002,2]
[313259721,1707047447525,-500.0,0.00028002,2]
[313259722,1707047447534,-4790.39,0.00028002,2]
[313259723,1707047447543,-2095.75,0.00028002,2]
[313259724,1707047447552,-634.74,0.00028004,2]
[313259725,1707047447562,-500.0,0.00028004,15]
[313259726,1707047447571,-500.0,0.00028004,2]
[313259727,1707047447581,-1963.79,0.00028004,2]
[313259728,1707047447590,-1576.79,0.00028004,2]
[313259729,1707047447599,-1665.37,0.00028004,2]
[313259730,1707047447608,-500.0,0.00028004,2]
[313259731,1707047447617,-1000.0,0.00028004,2]
[313259732,1707047447626,-1292.98,0.00028005,2]
[313259733,1707047447636,-1127.1,0.00028005,2]
[313259734,1707047447645,-500.0,0.00028005,2]
[313259735,1707047447654,-517.97,0.00028005,2]
[313259736,1707047447664,-500.0,0.00028005,2]
[313259737,1707047447673,-500.0,0.00028082,2]
[313259738,1707047447682,-151.0,0.00028098,2]
[313259739,1707047447692,-1555.14736511,0.00028206,2]
[313259740,1707047447701,-346.30965434,0.00028217,2]
[313259741,1707047447710,-500.0,0.00028219,2]
[313259742,1707047447719,-740.65,0.00028276,2]
[313259743,1707047447728,-500.0,0.00028276,2]
[313259744,1707047447738,-4790.39,0.00028276,2]
[313259745,1707047447747,-2095.75,0.00028276,2]
[313259746,1707047447756,-634.74,0.00028278,2]
[313259747,1707047447765,-500.0,0.00028278,15]
[313259748,1707047447776,-500.0,0.00028278,2]
[313259749,1707047447785,-1963.79,0.00028278,2]
[313259750,1707047447794,-1576.79,0.00028278,2]
[313259751,1707047447804,-1665.37,0.00028278,2]
[313259752,1707047447813,-397.79,0.00028278,2]
[313259753,1707047447823,-1000.0,0.00028278,2]
[313259754,1707047447833,-1292.98,0.00028279,2]
[313259755,1707047447842,-1127.1,0.00028279,2]
[313259756,1707047447851,-500.0,0.00028279,2]
[313259757,1707047447861,-517.97,0.00028279,2]
[313259758,1707047447871,-500.0,0.00028279,2]
[313259759,1707047447882,-500.0,0.00028356,2]
[313259760,1707047447892,-150.1,0.00028415,2]
[313259761,1707047447902,-500.0,0.00028493,2]
[313259762,1707047447911,-153.0,0.00028493,2]
[313259763,1707047447920,-191.21684595,0.000285,2]
[313259764,1707047447931,-740.65,0.0002855,2]
[313259765,1707047447942,-554.13417595,0.0002855,2]
[313259766,1707047447952,-4790.39,0.0002855,2]
[313259767,1707047447961,-2095.75,0.0002855,2]
[313259768,1707047447970,-634.74,0.00028552,2]
[313259769,1707047447979,-500.0,0.00028552,15]
[313259770,1707047447988,-500.0,0.00028552,2]
[313259771,1707047447998,-1963.79,0.00028552,2]
[313259772,1707047448009,-1576.79,0.00028552,2]
[313259773,1707047448020,-1665.37,0.00028552,2]
[313259774,1707047448031,-1000.0,0.00028552,2]
[313259775,1707047448041,-1292.98,0.00028553,2]
[313259776,1707047448050,-1127.1,0.00028553,2]
[313259777,1707047448060,-500.0,0.00028553,2]
[313259778,1707047448069,-517.97,0.00028553,2]
[313259779,1707047448079,-500.0,0.00028553,2]
[313259780,1707047448089,-500.0,0.0002863,2]
[313259781,1707047448101,-155.0,0.00028767,2]
[313259782,1707047448111,-500.0,0.00028767,2]
[313259783,1707047448122,-4425.50824305,0.000288,4]
[313259784,1707047448132,-740.65,0.00028824,2]
[313259785,1707047448143,-4790.39,0.00028824,2]
[313259786,1707047448153,-2095.75,0.00028824,2]
[313259787,1707047448163,-634.74,0.00028826,2]
[313259788,1707047448174,-500.0,0.00028826,15]
[313259789,1707047448184,-500.0,0.00028826,2]
[313259790,1707047448194,-1963.79,0.00028826,2]
[313259791,1707047448204,-1576.79,0.00028826,2]
[313259792,1707047448213,-1665.37,0.00028826,2]
[313259793,1707047448224,-1000.0,0.00028826,2]
[313259794,1707047448233,-1292.98,0.00028827,2]
[313259795,1707047448244,-1127.1,0.00028827,2]
[313259796,1707047448254,-500.0,0.00028827,2]
[313259797,1707047448263,-517.97,0.00028827,2]
[313259798,1707047448274,-500.0,0.00028827,2]
[313259799,1707047448283,-2000.0,0.000289,2]
[313259800,1707047448292,-2000.0,0.000289,2]
[313259801,1707047448301,-4024.5667775,0.000289,2]
[313259802,1707047448310,-2212.33009703,0.000289,3]
[313259803,1707047448319,-500.0,0.00028904,2]
[313259804,1707047448328,-155.0,0.00029,2]
[313259805,1707047448337,-280.36074121,0.00029,2]
[313259806,1707047448346,-1008.773,0.00029,2]
[313259807,1707047448355,-500.0,0.00029,2]
[313259808,1707047448364,-27011.9,0.00029,7]
[313259809,1707047448373,-477.11854835,0.00029041,2]
[313259810,1707047448382,-740.65,0.00029098,2]
[313259811,1707047448391,-4790.39,0.00029098,2]
[313259812,1707047448399,-2095.75,0.00029098,2]
[313259813,1707047448408,-634.74,0.000291,2]
[313259814,1707047448417,-500.0,0.000291,15]
[313259815,1707047448426,-615.08416021,0.000291,2]
[313259816,1707047448435,-1963.79,0.000291,2]
[313259817,1707047448443,-1576.79,0.000291,2]
[313259818,1707047448453,-1665.37,0.000291,2]
[313259819,1707047448462,-1000.0,0.000291,2]
[313259820,1707047448471,-1292.98,0.00029101,2]
[313259821,1707047448480,-1127.1,0.00029101,2]
[313259822,1707047448489,-500.0,0.00029101,2]
[313259823,1707047448498,-517.97,0.00029101,2]
[313259824,1707047448507,-177.2,0.00029101,2]
[313259825,1707047448517,-151.0,0.00029132,2]
[313259826,1707047448603,-740.65,0.00029372,2]
[313259827,1707047448612,-4790.39,0.00029372,2]
[313259828,1707047448622,-2095.75,0.00029372,2]
[313259829,1707047448630,-634.74,0.00029374,2]
[313259830,1707047448640,-500.0,0.00029374,15]
[313259831,1707047448649,-1963.79,0.00029374,2]
[313259832,1707047448659,-1576.79,0.00029374,2]
[313259833,1707047448668,-1665.37,0.00029374,2]
[313259834,1707047448677,-1000.0,0.00029374,2]
[313259835,1707047448686,-1292.98,0.00029375,2]
[313259836,1707047448699,-1127.1,0.00029375,2]
[313259837,1707047448709,-500.0,0.00029375,2]
[313259838,1707047448718,-517.97,0.00029375,2]
[313259839,1707047448727,-170.89,0.0002938,2]
[313259840,1707047448737,-170.89,0.0002938,2]
[313259841,1707047448746,-170.89,0.0002938,2]
[313259842,1707047448755,-170.89,0.0002938,2]
[313259843,1707047448765,-170.89,0.0002938,2]
[313259844,1707047448774,-170.89,0.0002938,2]
[313259845,1707047448783,-485.99999999,0.000295,2]
[313259846,1707047448792,-271.93344845,0.000295,2]
[313259847,1707047448801,-17661.50891095,0.00029635,2]
[313259848,1707047448810,-740.65,0.00029646,2]
[313259849,1707047448819,-4790.39,0.00029646,2]
[313259850,1707047448828,-2095.75,0.00029646,2]
[313259851,1707047448837,-634.74,0.00029648,2]
[313259852,1707047448847,-500.0,0.00029648,15]
[313259853,1707047448856,-1963.79,0.00029648,2]
[313259854,1707047448865,-1576.79,0.00029648,2]
[313259855,1707047448874,-1665.37,0.00029648,2]
[313259856,1707047448883,-1000.0,0.00029648,2]
[313259857,1707047448892,-1292.98,0.00029649,2]
[313259858,1707047448901,-1127.1,0.00029649,2]
[313259859,1707047448911,-562.96860253,0.00029649,2]
[313259860,1707047448920,-517.97,0.00029649,2]
[313259861,1707047448929,-355.2,0.000298,2]
[313259862,1707047448938,-287.78860974,0.00029841,5]
[313259863,1707047448947,-740.65,0.0002992,2]
[313259864,1707047448956,-4790.39,0.0002992,2]
[313259865,1707047448967,-2095.75,0.0002992,2]
[313259866,1707047448976,-634.74,0.00029922,2]
[313259867,1707047448985,-500.0,0.00029922,15]
[313259868,1707047448995,-1963.79,0.00029922,2]
[313259869,1707047449005,-1576.79,0.00029922,2]
[313259870,1707047449014,-1665.37,0.00029922,2]
[313259871,1707047449023,-1000.0,0.00029922,2]
[313259872,1707047449032,-1292.98,0.00029923,2]
[313259873,1707047449041,-1127.1,0.00029923,2]
[313259874,1707047449050,-517.97,0.00029923,2]
[313259875,1707047449060,-1000.0,0.0002999,7]
[313259876,1707047449069,-8763.01792434,0.00029999,3]
[313259877,1707047449079,-1531.66717925,0.0003,4]
[313259878,1707047449089,-4774.95962443,0.0003,2]
[313259879,1707047449101,-200.53196615,0.0003,4]
[313259880,1707047449110,-12086.34055064,0.0003,4]
[313259881,1707047449119,-915.80122961,0.0003,4]
[313259882,1707047449128,-2089.99571601,0.0003,4]
[313259883,1707047449137,-3394.18502133,0.0003,2]
[313259884,1707047449146,-503.59083949,0.0003,14]
[313259885,1707047449155,-349.69332785,0.0003,4]
[313259886,1707047449165,-155.01240099,0.0003,4]
[313259887,1707047449175,-4954.03529994,0.0003,4]
[313259888,1707047449184,-20191.49566545,0.0003,4]
[313259889,1707047449193,-1215.149824,0.0003,30]
[313259890,1707047449202,-28586.0,0.0003,2]
[313259891,1707047449211,-279.44895202,0.0003,30]
[313259892,1707047449221,-985.5439659,0.0003,4]
[313259893,1707047449230,-1059.31,0.0003,3]
[313259894,1707047449241,-1000.0,0.0003,7]
[313259895,1707047449251,-500.0,0.0003,2]
[313259896,1707047449261,-500.0,0.0003,10]
[313259897,1707047449271,-228.0,0.0003,2]
[313259898,1707047449282,-171.682484,0.0003,2]
[313259899,1707047449291,-303.22493749,0.00030017,2]
[313259900,1707047449300,-155.0,0.00030137,2]
[313259901,1707047449309,-151.0,0.00030165,2]
[313259902,1707047449319,-740.65,0.00030194,2]
[313259903,1707047449328,-4790.39,0.00030194,2]
[313259904,1707047449337,-2095.75,0.00030194,2]
[313259905,1707047449346,-634.74,0.00030196,2]
[313259906,1707047449355,-500.0,0.00030196,15]
[313259907,1707047449364,-1963.79,0.00030196,2]
[313259908,1707047449374,-1576.79,0.00030196,2]
[313259909,1707047449383,-1665.37,0.00030196,2]
[313259910,1707047449393,-757.66030741,0.00030196,2]
[313259911,1707047449404,-1292.98,0.00030197,2]
[313259912,1707047449414,-1127.1,0.00030197,2]
[313259913,1707047449423,-517.97,0.00030197,2]
[313259914,1707047449432,-740.65,0.00030468,2]
[313259915,1707047449442,-4790.39,0.00030468,2]
[313259916,1707047449452,-2095.75,0.00030468,2]
[313259917,1707047449462,-634.74,0.0003047,2]
[313259918,1707047449473,-500.0,0.0003047,15]
[313259919,1707047449484,-1963.79,0.0003047,2]
[313259920,1707047449494,-1576.79,0.0003047,2]
[313259921,1707047449504,-1665.37,0.0003047,2]
[313259922,1707047449514,-1292.98,0.00030471,2]
[313259923,1707047449525,-1127.1,0.00030471,2]
[313259924,1707047449534,-517.97,0.00030471,2]
[313259925,1707047449543,-2000.0,0.0003054,2]
[313259926,1707047449552,-740.65,0.00030742,2]
[313259927,1707047449562,-4790.39,0.00030742,2]
[313259928,1707047449570,-2095.75,0.00030742,2]
[313259929,1707047449579,-634.74,0.00030744,2]
[313259930,1707047449589,-500.0,0.00030744,15]
[313259931,1707047449598,-1963.79,0.00030744,2]
[313259932,1707047449608,-1576.79,0.00030744,2]
[313259933,1707047449617,-1665.37,0.00030744,2]
[313259934,1707047449627,-1292.98,0.00030745,2]
[313259935,1707047449636,-1127.1,0.00030745,2]
[313259936,1707047449645,-517.97,0.00030745,2]
[313259937,1707047449654,-391.0,0.00030764,15]
[313259938,1707047449664,-1010.0,0.00031,2]
[313259939,1707047449673,-3000.0,0.00031,3]
[313259940,1707047449682,-1271.54,0.00031,4]
[313259941,1707047449691,-500.0,0.00031,2]
[313259942,1707047449701,-217563.33898882,0.00031,4]
[313259943,1707047449756,-2995.38868719,0.00031,4]
[313259944,1707047449767,-478.15504077,0.00031,4]
[313259945,1707047449779,-12878.5885475,0.00031,4]
[313259946,1707047450049,-180.11333156,0.00023113,7]
[313259947,1707047450058,-241.59843681,0.00023113,2]
[313259948,1707047450067,-7243.52856832,0.00031,4]
[313259950,1707047540177,-20917.8332955,0.00022728,2]
[313259951,1707047540204,-937.65883113,0.00022729,2]
[313259965,1707047880722,-5153.0,0.00021825,2]
[313260060,1707048632292,-651.59002088,0.000215,2]
[313260063,1707048632303,-323.81557453,0.00021501,2]
[313260065,1707048632312,-234.27720183,0.00021502,2]
[313260067,1707048632321,-2465.67574349,0.00021502,2]
[313260069,1707048632330,-6801.02037964,0.00021502,2]
[313260071,1707048632339,-6801.02037964,0.00021503,2]
[313260072,1707048632347,-685.8157263,0.00021516,2]
[313260074,1707048632356,-24900.0,0.0002167,2]
[313260076,1707048632365,-165.662086,0.00021829,2]
[313260078,1707048632374,-164.09624383,0.00022911,2]
[313260080,1707048632383,-191.29534954,0.00023011,2]
[313260081,1707048632392,-2024.86295642,0.0002307,2]
[313260083,1707048632401,-4327.51,0.00023101,3]
[313260084,1707048632409,-3606.26,0.00023101,3]
[313260085,1707048632418,-3915.29132994,0.00023109,2]
[313260086,1707048632427,-162.74585452,0.00023109,2]
[313260087,1707048632436,-241.59843681,0.00023109,2]
[313260088,1707048632445,-187.68006024,0.00023109,2]